fUSD/lending_fUSD_20251228
["ID","MTS","AMOUNT","RATE_DAILY","PERIOD"]
[399953628,1766937041893,-500.0,0.00016438,2]
[399953630,1766937041902,-500.0,0.00016438,2]
[399953632,1766937041911,-500.0,0.00016438,2]
[399953634,1766937041920,-358.43132011,0.00016438,2]
[399953636,1766937041930,-500.0,0.00016438,2]
[399953638,1766937041938,-500.0,0.00016438,2]
[399953640,1766937041947,-500.0,0.00016438,2]
[399953642,1766937041956,-500.0,0.00016438,2]
[399953644,1766937041966,-500.0,0.00016438,2]
[399953646,1766937041975,-500.0,0.00016438,2]
[399953648,1766937041984,-500.0,0.00016438,2]
[399953650,1766937041993,-500.0,0.00016438,2]
[399953652,1766937042002,-500.0,0.00016438,2]
[399953654,1766937042011,-500.0,0.00016438,2]
[399953656,1766937042021,-350.0,0.00016438,2]
[399953658,1766937042029,-500.0,0.00016438,2]
[399953659,1766937042038,-500.0,0.00016438,2]
[399953661,1766937042048,-500.0,0.00016438,2]
[399953662,1766937042058,-500.0,0.00016438,2]
[399953663,1766937042067,-150.0,0.00016438,2]
[399953664,1766937042075,-500.0,0.00016438,2]
[399953665,1766937042085,-500.0,0.00016438,2]
[399953666,1766937042094,-500.0,0.00016438,2]
[399953667,1766937042104,-500.0,0.00016438,2]
[399953668,1766937042113,-500.0,0.00016438,2]
[399953669,1766937042122,-500.0,0.00016438,2]
[399953670,1766937042132,-500.0,0.00016438,2]
[399953671,1766937042141,-500.0,0.00016438,2]
[399953672,1766937042150,-500.0,0.00016438,2]
[399953673,1766937042160,-500.0,0.00016438,2]
[399953674,1766937042171,-500.0,0.00016438,2]
[399953675,1766937042181,-500.0,0.00016452,7]
[399953676,1766937042191,-150.0,0.0001648,2]
[399953677,1766937042203,-237.83643607,0.0001648,2]
[399953678,1766937042213,-168.0,0.0001648,2]
[399953679,1766937042223,-200.0,0.0001648,2]
[399953680,1766937042232,-3969.03286842,0.00016496,2]
[399953681,1766937042244,-150.0,0.00016507,2]
[399953682,1766937042253,-250.0,0.00016535,2]
[399953683,1766937042262,-150.0,0.00016548,2]
[399953684,1766937042272,-150.0,0.00016548,2]
[399953685,1766937042282,-150.0,0.00016548,2]
[399953686,1766937042292,-150.42,0.00016548,2]
[399953687,1766937042302,-150.0,0.00016562,2]
[399953688,1766937042312,-150.0,0.00016562,2]
[399953689,1766937042321,-150.0,0.00016562,2]
[399953690,1766937042331,-500.0,0.00016562,2]
[399953691,1766937042340,-150.0,0.00016562,2]
[399953692,1766937042350,-150.0,0.00016562,2]
[399953693,1766937042359,-150.0,0.00016562,2]
[399953694,1766937042368,-244.86390051,0.00016562,2]
[399953695,1766937042378,-500.0,0.00016575,2]
[399953696,1766937042387,-659.96,0.00016575,2]
[399953698,1766937042397,-659.96,0.00016575,2]
[399953700,1766937042407,-659.96,0.00016575,2]
[399953703,1766937042416,-659.96,0.00016575,2]
[399953705,1766937042425,-659.96,0.00016575,2]
[399953708,1766937042434,-659.96,0.00016575,2]
[399953710,1766937042444,-659.96,0.00016575,2]
[399953711,1766937042453,-659.96,0.00016575,2]
[399953712,1766937042462,-659.96,0.00016575,2]
[399953713,1766937042471,-659.96,0.00016575,2]
[399953714,1766937042480,-659.96,0.00016575,2]
[399953715,1766937042489,-659.96,0.00016575,2]
[399953716,1766937042499,-3969.03286842,0.00016577,2]
[399953717,1766937042509,-164.91531166,0.00016589,2]
[399953718,1766937042518,-150.0,0.00016589,2]
[399953719,1766937042530,-150.0,0.00016589,2]
[399953720,1766937042540,-500.0,0.00016589,2]
[399953721,1766937042550,-200.0,0.00016589,2]
[399953722,1766937042559,-176.84626368,0.00016589,2]
[399953723,1766937042568,-150.0,0.00016589,2]
[399953724,1766937042578,-1786.7,0.00016602,2]
[399953725,1766937042587,-912.59,0.00016616,2]
[399953726,1766937042597,-150.0,0.00016617,2]
[399953727,1766937042606,-350.0,0.00016617,2]
[399953728,1766937042618,-150.0,0.00016617,2]
[399953729,1766937042627,-168.0,0.00016632,2]
[399953730,1766937042638,-150.0,0.00016644,2]
[399953731,1766937042649,-150.0,0.00016644,2]
[399953732,1766937042658,-150.0,0.00016652,2]
[399953733,1766937042668,-3969.03286842,0.00016658,2]
[399953734,1766937042678,-324.31797014,0.0001666,2]
[399953735,1766937042688,-150.0,0.00016672,2]
[399953736,1766937042698,-150.0,0.00016672,2]
[399953737,1766937042707,-1154.343,0.00016689,2]
[399953738,1766937042717,-180.48,0.00016689,2]
[399953739,1766937042727,-250.0,0.00016699,2]
[399953740,1766937042737,-250.0,0.00016699,2]
[399953741,1766937042746,-168.0,0.00016702,2]
[399953742,1766937042756,-900.0,0.00016726,7]
[399953743,1766937042765,-1000.0,0.00016726,7]
[399953744,1766937042774,-168.0,0.00016733,2]
[399953745,1766937042786,-3969.03286842,0.00016738,2]
[399953746,1766937042795,-168.0,0.00016753,2]
[399953747,1766937042804,-168.0,0.00016766,2]
[399953748,1766937042813,-3969.03286842,0.00016819,2]
[399953749,1766937042823,-168.0,0.00016847,2]
[399953750,1766937042831,-912.59,0.0001689,2]
[399953751,1766937042841,-3969.03286842,0.000169,2]
[399953752,1766937042851,-2252.0,0.000169,2]
[399953753,1766937042861,-166.66,0.00016921,2]
[399953754,1766937042870,-659.96,0.00016959,2]
[399953755,1766937042879,-659.96,0.00016959,2]
[399953756,1766937042888,-659.96,0.00016959,2]
[399953757,1766937042903,-659.96,0.00016959,2]
[399953758,1766937042912,-659.96,0.00016959,2]
[399953759,1766937042921,-659.96,0.00016959,2]
[399953760,1766937042930,-659.96,0.00016959,2]
[399953761,1766937042940,-659.96,0.00016959,2]
[399953762,1766937042950,-659.96,0.00016959,2]
[399953763,1766937042960,-659.96,0.00016959,2]
[399953764,1766937042969,-659.96,0.00016959,2]
[399953765,1766937042977,-659.96,0.00016959,2]
[399953766,1766937042987,-659.96,0.00016959,2]
[399953767,1766937042997,-659.96,0.00016959,2]
[399953768,1766937043006,-659.96,0.00016959,2]
[399953769,1766937043014,-659.96,0.00016959,2]
[399953770,1766937043023,-659.96,0.00016959,2]
[399953771,1766937043033,-659.96,0.00016959,2]
[399953772,1766937043043,-659.96,0.00016959,2]
[399953773,1766937043053,-659.96,0.00016959,2]
[399953774,1766937043062,-659.96,0.00016959,2]
[399953775,1766937043071,-659.96,0.00016959,2]
[399953776,1766937043080,-659.96,0.00016959,2]
[399953777,1766937043089,-511.82107275,0.00016973,2]
[399953778,1766937043099,-163.47849716,0.00016973,2]
[399953779,1766937043108,-500.0,0.00016973,2]
[399953780,1766937043117,-500.0,0.00016973,2]
[399953781,1766937043126,-500.0,0.00016973,2]
[399953782,1766937043136,-500.0,0.00016973,2]
[399953783,1766937043146,-203.9629744,0.00016974,2]
[399953784,1766937043155,-168.0,0.00016983,2]
[399953785,1766937043168,-150.0,0.00016986,2]
[399953786,1766937043178,-150.0,0.00016986,2]
[399953787,1766937043188,-150.0,0.00016986,2]
[399953788,1766937043197,-119227.8465909,0.00016999,2]
[399953789,1766937043209,-1933.4777275,0.00016999,2]
[399953790,1766937043219,-300.0,0.00016999,2]
[399953791,1766937043229,-58891.8927504,0.00016999,2]
[399953792,1766937043238,-300.0,0.00016999,2]
[399953793,1766937043248,-2461.1571103,0.00016999,2]
[399953794,1766937043257,-110361.1266293,0.00016999,2]
[399953795,1766937043267,-500.0,0.00016999,2]
[399953796,1766937043276,-190.55361039,0.00016999,2]
[399953797,1766937043285,-370940.89453684,0.00017,2]
[399953799,1766937043573,-156.16164433,0.00016538,2]
[399953800,1766937043583,-713429.39200054,0.00017,2]
[399953805,1766937045840,-2116.4783889,0.00016176,2]
[399953806,1766937045853,-1262.89722289,0.00016176,2]
[399953807,1766937045863,-141.65972924,0.00016719,2]
[399953808,1766937045878,-14.50191509,0.00016719,2]
[399953809,1766937045887,-659.96,0.00016959,2]
[399953810,1766937045896,-1812.2333452,0.00017,2]
[399953811,1766937045907,-1005.22484324,0.00017,2]
[399953812,1766937045919,-409.55999997,0.00017,2]
[399953818,1766937156584,161.17,7.863e-05,2]
[399953819,1766937156772,161.17,8.846e-05,2]
[399953820,1766937156998,161.17,9.829e-05,2]
[399953821,1766937157209,161.17,0.00010812,2]
[399953822,1766937157420,161.17,0.00011795,2]
[399953823,1766937157642,161.17,0.00012778,2]
[399953829,1766937496836,500.0,0.00030136,120]
[399953830,1766937498425,161.41,0.00030136,120]
[399953835,1766937564521,-20000.0,0.00042982,30]
[399953836,1766937564562,-1000.0,0.00042982,30]
[399953837,1766937564593,-10436.95602916,0.00042982,30]
[399953838,1766937564624,-50000.0,0.00042982,30]
[399953839,1766937564653,-50000.0,0.00042982,31]
[399953840,1766937564685,-50000.0,0.00042982,32]
[399953841,1766937564714,-50000.0,0.00042982,33]
[399953842,1766937564745,-50000.0,0.00042982,34]
[399953843,1766937564777,-50000.0,0.00042982,35]
[399953844,1766937564807,-50000.0,0.00042982,36]
[399953845,1766937564836,-50000.0,0.00042982,37]
[399953846,1766937564866,-50000.0,0.00042982,38]
[399953847,1766937564898,-50000.0,0.00042982,39]
[399953848,1766937564926,-220.60270303,0.00042982,30]
[399953849,1766937564957,-5083.26950748,0.00042982,30]
[399953850,1766937564986,-283.10686945,0.00042982,30]
[399953851,1766937565013,-216.04588937,0.00042982,31]
[399953852,1766937565042,-2505.1654494,0.00042982,30]
[399953853,1766937565070,-1466400.0,0.00042982,30]
[399953854,1766937565104,-4000.0,0.00042982,31]
[399953855,1766937565132,-106010.94068954,0.00042982,30]
[399953856,1766937565162,-1000.0,0.00042982,30]
[399953857,1766937565190,-743.66909451,0.00042982,30]
[399953858,1766937565217,-2750.7877553,0.00042982,30]
[399953859,1766937565245,-40756.74650777,0.00042982,30]
[399953860,1766937565272,-46193.03277193,0.00042982,30]
[399953861,1766937565300,-842.89350206,0.00042982,30]
[399953862,1766937565328,-3288636.00759406,0.00042982,30]
[399953863,1766937565356,-205578.32215284,0.00042982,30]
[399953864,1766937565385,-297342.4534841,0.00042982,30]
[399953865,1766937569676,-47793.7566539,0.00042982,30]
[399953866,1766937569704,-4819.63039619,0.00042982,30]
[399953867,1766937569731,-10784.22296124,0.00042982,30]
[399953868,1766937569756,-317876.38545902,0.00042982,30]
[399953869,1766937569782,-136188.15865314,0.00042982,30]
[399953870,1766937569807,-10000.0,0.00042982,30]
[399953871,1766937569835,-2009430.14099684,0.00042982,30]
[399953872,1766937569866,-84938.53113493,0.00042982,30]
[399953873,1766937569893,-5821.51301752,0.00042982,30]
[399953874,1766937569919,-728105.20068696,0.00042982,30]
[399953875,1766937569943,-6438.47811528,0.00042982,30]
[399953876,1766937569973,-574601.33729922,0.00042982,30]
[399953877,1766937570000,-50266.0,0.00042982,58]
[399953878,1766937570027,-377.95448505,0.00042982,30]
[399953879,1766937570054,-173.75535742,0.00042982,30]
[399953880,1766937570080,-3000.0,0.00042982,30]
[399953881,1766937570110,-3000.0,0.00042982,30]
[399953882,1766937570137,-878.0,0.00042982,30]
[399953883,1766937570166,-3000.0,0.00042982,120]
[399953884,1766937570194,-3000.0,0.00042982,120]
[399953885,1766937570224,-878.0,0.00042982,120]
[399953886,1766937570252,-3000.0,0.00042982,30]
[399953887,1766937570280,-828.0,0.00042982,30]
[399953888,1766937570309,-3000.0,0.00042982,120]
[399953889,1766937570337,-828.0,0.00042982,120]
[399953890,1766937570368,-196.46349534,0.00042982,120]
[399953891,1766937570398,-3000.0,0.00042982,30]
[399953892,1766937570428,-3000.0,0.00042982,120]
[399953893,1766937570458,-150.02,0.00042982,120]
[399953894,1766937570486,-150.02,0.00042982,120]
[399953895,1766937570522,-150.02,0.00042982,120]
[399953896,1766937570551,-150.02,0.00042982,120]
[399953897,1766937570577,-150.02,0.00042982,120]
[399953898,1766937570604,-150.02,0.00042982,120]
[399953899,1766937570634,-150.02,0.00042982,120]
[399953900,1766937570661,-500.0,0.00042982,120]
[399953901,1766937570688,-150.02,0.00042982,120]
[399953902,1766937570716,-500.0,0.00042982,120]
[399953903,1766937570743,-500.0,0.00042982,120]
[399953904,1766937570770,-500.0,0.00042982,120]
[399953905,1766937570797,-500.0,0.00042982,120]
[399953906,1766937571034,-500.0,0.00042982,120]
[399953907,1766937571066,-532.60123982,0.00042982,120]
[399953908,1766937571094,-150.02,0.00042982,120]
[399953909,1766937571122,-150.02,0.00042982,120]
[399953910,1766937571150,-150.02,0.00042982,120]
[399953911,1766937571177,-150.02,0.00042982,120]
[399953912,1766937571202,-150.02,0.00042982,120]
[399953913,1766937571228,-150.02,0.00042982,120]
[399953914,1766937571253,-150.02,0.00042982,120]
[399953915,1766937571281,-150.02,0.00042982,120]
[399953916,1766937571307,-150.02,0.00042982,120]
[399953917,1766937571332,-150.02,0.00042982,120]
[399953918,1766937571358,-150.02,0.00042982,120]
[399953919,1766937571384,-150.02,0.00042982,120]
[399953920,1766937571411,-150.02,0.00042982,120]
[399953921,1766937571437,-150.02,0.00042982,120]
[399953922,1766937571466,-150.02,0.00042982,120]
[399953923,1766937571495,-150.02,0.00042982,120]
[399953924,1766937571533,-150.02,0.00042982,120]
[399953925,1766937571562,-150.02,0.00042982,120]
[399953926,1766937571591,-150.02,0.00042982,120]
[399953927,1766937571617,-150.02,0.00042982,120]
[399953928,1766937571645,-150.02,0.00042982,120]
[399953929,1766937571672,-150.02,0.00042982,120]
[399953930,1766937571699,-150.02,0.00042982,120]
[399953931,1766937571726,-150.02,0.00042982,120]
[399953932,1766937571753,-150.02,0.00042982,120]
[399953933,1766937571780,-150.02,0.00042982,120]
[399953934,1766937571806,-150.02,0.00042982,120]
[399953935,1766937571833,-304.9695,0.00042982,60]
[399953936,1766937571860,-304.9695,0.00042982,60]
[399953937,1766937571889,-304.9695,0.00042982,60]
[399953938,1766937571917,-304.9695,0.00042982,60]
[399953939,1766937571944,-304.9695,0.00042982,60]
[399953940,1766937571976,-150.02,0.00042982,120]
[399953941,1766937572004,-500.0,0.00042982,120]
[399953942,1766937572032,-463.20057737,0.00042982,120]
[399953943,1766937572059,-309.33981229,0.00042982,120]
[399953944,1766937572089,-800.309525,0.00042982,120]
[399953945,1766937572116,-150.01,0.00042982,120]
[399953946,1766937572143,-150.02,0.00042982,120]
[399953947,1766937572170,-150.02,0.00042982,120]
[399953948,1766937572200,-150.02,0.00042982,120]
[399953949,1766937572232,-150.02,0.00042982,120]
[399953950,1766937572261,-150.02,0.00042982,120]
[399953951,1766937572293,-150.02,0.00042982,120]
[399953952,1766937572323,-150.02,0.00042982,120]
[399953953,1766937572351,-150.02,0.00042982,120]
[399953954,1766937572380,-150.02,0.00042982,120]
[399953955,1766937572410,-150.02,0.00042982,120]
[399953956,1766937572438,-150.02,0.00042982,120]
[399953957,1766937572466,-150.02,0.00042982,120]
[399953958,1766937572496,-150.02,0.00042982,120]
[399953959,1766937572524,-150.02,0.00042982,120]
[399953960,1766937572555,-150.02,0.00042982,120]
[399953961,1766937572583,-150.02,0.00042982,120]
[399953962,1766937572609,-150.02,0.00042982,120]
[399953963,1766937572634,-150.02,0.00042982,120]
[399953964,1766937572660,-150.02,0.00042982,120]
[399953965,1766937572690,-150.02,0.00042982,120]
[399953966,1766937572717,-150.02,0.00042982,120]
[399953967,1766937572744,-150.02,0.00042982,120]
[399953968,1766937572771,-150.02,0.00042982,120]
[399953969,1766937572799,-150.02,0.00042982,120]
[399953970,1766937572830,-150.02,0.00042982,120]
[399953971,1766937572857,-150.02,0.00042982,120]
[399953972,1766937572885,-150.02,0.00042982,120]
[399953973,1766937572915,-150.02,0.00042982,120]
[399953974,1766937572946,-150.02,0.00042982,120]
[399953975,1766937572973,-150.02,0.00042982,120]
[399953976,1766937573002,-150.02,0.00042982,120]
[399953977,1766937573030,-150.02,0.00042982,120]
[399953978,1766937573056,-150.02,0.00042982,120]
[399953979,1766937573082,-288.02,0.00042982,120]
[399953980,1766937573108,-150.02,0.00042982,120]
[399953981,1766937573134,-150.02,0.00042982,120]
[399953982,1766937573161,-150.02,0.00042982,120]
[399953983,1766937573187,-150.02,0.00042982,120]
[399953984,1766937573217,-150.02,0.00042982,120]
[399953985,1766937573244,-150.02,0.00042982,120]
[399953986,1766937573272,-150.02,0.00042982,120]
[399953987,1766937573301,-150.02,0.00042982,120]
[399953988,1766937573328,-150.02,0.00042982,120]
[399953989,1766937573354,-150.02,0.00042982,120]
[399953990,1766937573381,-150.02,0.00042982,120]
[399953991,1766937573408,-150.02,0.00042982,120]
[399953992,1766937573434,-150.02,0.00042982,120]
[399953993,1766937573463,-150.02,0.00042982,120]
[399953994,1766937573490,-150.02,0.00042982,120]
[399953995,1766937573519,-150.02,0.00042982,120]
[399953996,1766937573545,-150.02,0.00042982,120]
[399953997,1766937573573,-150.02,0.00042982,120]
[399953998,1766937573600,-150.02,0.00042982,120]
[399953999,1766937573626,-150.02,0.00042982,120]
[399954000,1766937573652,-150.02,0.00042982,120]
[399954001,1766937573866,-150.02,0.00042982,120]
[399954002,1766937573896,-150.02,0.00042982,120]
[399954003,1766937573924,-150.02,0.00042982,120]
[399954004,1766937573951,-150.02,0.00042982,120]
[399954005,1766937573992,-150.02,0.00042982,120]
[399954006,1766937574021,-150.02,0.00042982,120]
[399954007,1766937574051,-150.02,0.00042982,120]
[399954008,1766937574080,-150.02,0.00042982,120]
[399954009,1766937574108,-150.02,0.00042982,120]
[399954010,1766937574135,-150.02,0.00042982,120]
[399954011,1766937574161,-150.02,0.00042982,120]
[399954012,1766937574188,-150.02,0.00042982,120]
[399954013,1766937574218,-150.02,0.00042982,120]
[399954014,1766937574248,-150.02,0.00042982,120]
[399954015,1766937574276,-150.02,0.00042982,120]
[399954016,1766937574305,-150.02,0.00042982,120]
[399954017,1766937574333,-150.02,0.00042982,120]
[399954018,1766937574362,-150.02,0.00042982,120]
[399954019,1766937574389,-150.02,0.00042982,120]
[399954020,1766937574416,-150.02,0.00042982,120]
[399954021,1766937574442,-150.02,0.00042982,120]
[399954022,1766937574469,-150.02,0.00042982,120]
[399954023,1766937574502,-150.02,0.00042982,120]
[399954024,1766937574532,-150.02,0.00042982,120]
[399954025,1766937574559,-150.02,0.00042982,120]
[399954026,1766937574585,-150.02,0.00042982,120]
[399954027,1766937574612,-150.02,0.00042982,120]
[399954028,1766937574640,-150.02,0.00042982,120]
[399954029,1766937574667,-150.02,0.00042982,120]
[399954030,1766937574694,-150.02,0.00042982,120]
[399954031,1766937574720,-150.02,0.00042982,120]
[399954032,1766937574747,-150.02,0.00042982,120]
[399954033,1766937574774,-150.02,0.00042982,120]
[399954034,1766937574800,-150.02,0.00042982,120]
[399954035,1766937574826,-150.02,0.00042982,120]
[399954036,1766937574852,-150.02,0.00042982,120]
[399954037,1766937574880,-150.02,0.00042982,120]
[399954038,1766937574908,-150.02,0.00042982,120]
[399954039,1766937574935,-150.02,0.00042982,120]
[399954040,1766937574965,-150.02,0.00042982,120]
[399954041,1766937574994,-150.02,0.00042982,120]
[399954042,1766937575022,-150.02,0.00042982,120]
[399954043,1766937575049,-150.02,0.00042982,120]
[399954044,1766937575077,-150.02,0.00042982,120]
[399954045,1766937575106,-150.02,0.00042982,120]
[399954046,1766937575135,-150.02,0.00042982,120]
[399954047,1766937575164,-150.02,0.00042982,120]
[399954048,1766937575193,-150.02,0.00042982,120]
[399954049,1766937575221,-150.02,0.00042982,120]
[399954050,1766937575248,-150.02,0.00042982,120]
[399954051,1766937575276,-288.02,0.00042982,120]
[399954052,1766937575303,-232.95614,0.00042982,60]
[399954053,1766937575331,-232.95614,0.00042982,60]
[399954054,1766937575360,-232.95614,0.00042982,60]
[399954055,1766937575391,-232.95614,0.00042982,60]
[399954056,1766937575419,-232.95614,0.00042982,60]
[399954057,1766937575448,-20176.76336,0.00042982,120]
[399954058,1766937575476,-307.76839635,0.00042982,120]
[399954059,1766937575504,-181.11631434,0.00042982,120]
[399954060,1766937575535,-190.68102596,0.00042982,120]
[399954061,1766937575563,-266.88528257,0.00042982,120]
[399954062,1766937575591,-3210.05449861,0.00042982,120]
[399954063,1766937575618,-2186.2537503,0.00042982,120]
[399954064,1766937575647,-1500.0,0.00042982,120]
[399954065,1766937575674,-4396.36,0.00042982,40]
[399954066,1766937575703,-2132.5128751,0.00042982,120]
[399954067,1766937575731,-1848.7,0.00042982,120]
[399954068,1766937575758,-12560.63,0.00042982,45]
[399954069,1766937575786,-3213.0,0.00042982,64]
[399954070,1766937575815,-727.15420446,0.00042982,120]
[399954071,1766937575841,-269.76126146,0.00042982,120]
[399954072,1766937575868,-683.38,0.00042982,120]
[399954073,1766937575895,-25000.0,0.00042982,30]
[399954074,1766937575922,-1203.91564865,0.00042982,30]
[399954075,1766937575950,-1000.0,0.00042982,60]
[399954076,1766937575976,-1000.0,0.00042982,90]
[399954077,1766937576004,-1000.0,0.00042982,120]
[399954078,1766937576031,-5955.42229852,0.00042982,30]
[399954079,1766937576057,-1515917.12236116,0.00042982,30]
[399954080,1766937576084,-303250.83350907,0.00042982,30]
[399954081,1766937576110,-5390.92442259,0.00042982,30]
[399954082,1766937576136,-6096.40578992,0.00042982,30]
[399954083,1766937576161,-196.0,0.00042982,120]
[399954084,1766937576187,-171.63221401,0.00042982,120]
[399954085,1766937576215,-500.0,0.00042982,120]
[399954086,1766937576245,-623.59084501,0.00042982,120]
[399954087,1766937576273,-1115.79349163,0.00042982,120]
[399954088,1766937576302,-186.0,0.00042982,120]
[399954089,1766937576329,-175.98007254,0.00042982,91]
[399954090,1766937576355,-208.18537776,0.00042982,30]
[399954091,1766937576382,-2413.29199959,0.00042982,120]
[399954092,1766937576408,-3506.0870658,0.00042982,30]
[399954093,1766937576435,-300.02829116,0.00042982,30]
[399954094,1766937576463,-152.33386214,0.00042982,30]
[399954095,1766937576494,-261.50211397,0.00042982,30]
[399954096,1766937576682,-237.07177764,0.00042982,30]
[399954097,1766937576708,-259.82771437,0.00042982,30]
[399954098,1766937576733,-277.5562364,0.00042982,30]
[399954099,1766937576759,-434.80385274,0.00042982,30]
[399954100,1766937576786,-254.46223013,0.00042982,30]
[399954101,1766937576812,-178.02154519,0.00042982,120]
[399954102,1766937576838,-338.58628997,0.00042982,30]
[399954103,1766937576865,-163.22596308,0.00042982,30]
[399954104,1766937576894,-154.93905358,0.00042982,30]
[399954105,1766937576921,-158.04919651,0.00042982,120]
[399954106,1766937576953,-10110.74164578,0.00042982,45]
[399954107,1766937576981,-12709.18609541,0.00042982,30]
[399954108,1766937580610,-87290.81390459,0.00042982,30]
[399954109,1766937580638,-1251.8795447,0.00042982,120]
[399954110,1766937580667,-1241.91,0.00042982,120]
[399954111,1766937580695,-1241.91,0.00042982,120]
[399954112,1766937580724,-1241.91,0.00042982,120]
[399954113,1766937580753,-1241.91,0.00042982,120]
[399954114,1766937580781,-1241.91,0.00042982,120]
[399954115,1766937580810,-1241.91,0.00042982,120]
[399954116,1766937580838,-1241.91,0.00042982,120]
[399954117,1766937580868,-1241.91,0.00042982,120]
[399954118,1766937580897,-1241.91,0.00042982,120]
[399954119,1766937580924,-1241.91,0.00042982,120]
[399954120,1766937580951,-1241.91,0.00042982,120]
[399954121,1766937580979,-1241.91,0.00042982,120]
[399954122,1766937581007,-1241.91,0.00042982,120]
[399954123,1766937581034,-1241.91,0.00042982,120]
[399954124,1766937581062,-1241.91,0.00042982,120]
[399954125,1766937581091,-1241.91,0.00042982,120]
[399954126,1766937581122,-1241.91,0.00042982,120]
[399954127,1766937581152,-1241.91,0.00042982,120]
[399954128,1766937581182,-1241.91,0.00042982,120]
[399954129,1766937581213,-1241.91,0.00042982,120]
[399954130,1766937581245,-1241.91,0.00042982,120]
[399954131,1766937581275,-1241.91,0.00042982,120]
[399954132,1766937581305,-1241.91,0.00042982,120]
[399954133,1766937581333,-1242.07,0.00042982,120]
[399954134,1766937581361,-49679.16153804,0.00042982,30]
[399954135,1766937581390,-10000.0,0.00042982,120]
[399954136,1766937581419,-34213.28,0.00042982,45]
[399954137,1766937581447,-100000.0,0.00042982,60]
[399954138,1766937581485,-200000.0,0.00042982,60]
[399954139,1766937581518,-50000.0,0.00042982,30]
[399954140,1766937581546,-8113.0,0.00042982,30]
[399954141,1766937581574,-201.58022907,0.00042982,30]
[399954142,1766937581602,-1062.2707763,0.00042982,60]
[399954143,1766937581630,-15109.21232377,0.00042982,30]
[399954144,1766937581661,-500.0,0.00042982,120]
[399954145,1766937581691,-500.0,0.00042982,120]
[399954146,1766937581720,-500.0,0.00042982,120]
[399954147,1766937581749,-500.0,0.00042982,120]
[399954148,1766937581777,-500.0,0.00042982,120]
[399954149,1766937581806,-500.0,0.00042982,120]
[399954150,1766937581838,-500.0,0.00042982,120]
[399954151,1766937581867,-368.2841367,0.00042982,120]
[399954152,1766937581896,-500.0,0.00042982,120]
[399954153,1766937581924,-500.0,0.00042982,120]
[399954154,1766937581953,-500.0,0.00042982,120]
[399954155,1766937581982,-500.0,0.00042982,120]
[399954156,1766937582009,-455.13521257,0.00042982,120]
[399954157,1766937582037,-930.78823538,0.00042982,120]
[399954158,1766937582067,-345269.06024273,0.00042982,120]
[399954159,1766937582099,-500.0,0.00042982,120]
[399954160,1766937582129,-500.0,0.00042982,120]
[399954161,1766937582157,-500.0,0.00042982,120]
[399954162,1766937582186,-500.0,0.00042982,120]
[399954163,1766937582214,-500.0,0.00042982,120]
[399954164,1766937582242,-500.0,0.00042982,120]
[399954165,1766937582272,-500.0,0.00042982,120]
[399954166,1766937582301,-429.02148637,0.00042982,120]
[399954167,1766937582332,-292.036274,0.00042982,30]
[399954168,1766937582361,-469.34987693,0.00042982,120]
[399954169,1766937582391,-999.999998,0.00042982,120]
[399954170,1766937582419,-23673.96101506,0.00042982,30]